bitfinex-derivatives/quotes_ETHF0:USTF0_20210110
["timestamp","ask_amount","ask_price","bid_price","bid_amount"]
[1610319693755,4.00959,1274.3,1274.2,3.50647094]
[1610319694255,4.00959,1274.3,1274.2,2.3029]
[1610319695657,17.72161493,1275.2,1274.2,2.3029]
[1610319695858,17.72161493,1275.2,1274.2,3.50654081]
[1610319697057,19.34269714,1275.3,1274.2,3.50654081]
[1610319697257,19.34269714,1275.3,1274.3,1.2034472]
[1610319697457,1.583,1275.3,1274.3,1.2034472]
[1610319697662,4.00959,1275.1,1274.5,4.00959]
[1610319698362,21.19252292,1275.6,1274.5,4.00959]
[1610319698563,3.405,1275.6,1274.6,1.20305933]
[1610319699263,3.405,1275.6,1274.5,6.49939]
[1610319699662,4.00959,1274.9,1274.5,6.49939]
[1610319700063,4.00959,1274.9,1274.6,1.20315832]
[1610319701467,34.00959,1274.9,1274.6,1.20315832]
[1610319701664,4.00959,1274.7,1274.3,1.20359794]
[1610319704066,17.80451528,1275.5,1274.3,1.20359794]
[1610319704667,23.63191195,1275.6,1274.3,1.20359794]
[1610319704867,5.8252,1275.6,1274.3,1.20359794]
[1610319705267,3.405,1275.6,1274.3,1.20359794]
[1610319705667,4.00959,1275.4,1274.8,4.00959]
[1610319707072,4.00959,1275.4,1274.9,1.20301516]
[1610319707270,34.00959,1275.4,1274.9,3.47771516]
[1610319707470,4.00959,1275.4,1274.9,3.47771516]
[1610319707671,30.0,1275.5,1274.9,3.47771516]
[1610319707672,4.00959,1275.0,1274.9,3.47771516]
[1610319708271,4.00959,1275.0,1274.9,2.2747]
[1610319709072,21.22062619,1275.6,1274.9,2.2747]
[1610319709272,3.405,1275.6,1274.9,2.2747]
[1610319709673,4.00959,1275.0,1274.9,3.47779027]
[1610319713375,4.00959,1275.0,1274.9,2.2747]
[1610319713877,4.00959,1275.0,1274.9,1.20319562]
[1610319714781,21.23772407,1275.6,1274.9,1.20319562]
[1610319714980,3.405,1275.6,1274.9,1.20319562]
[1610319715581,33.405,1275.6,1274.9,1.20319562]
[1610319715781,4.00959,1275.2,1274.9,1.20319562]
[1610319716181,3.405,1275.6,1274.9,1.20319562]
[1610319716981,21.23500211,1275.6,1274.9,1.20319562]
[1610319717681,4.00959,1275.2,1274.9,1.20319562]
[1610319718182,3.405,1275.6,1274.9,1.20319562]
[1610319719683,4.00959,1275.0,1274.9,1.20319562]
[1610319721086,3.405,1275.6,1274.9,1.20319562]
[1610319721790,4.00959,1275.3,1274.9,1.20319562]
[1610319723693,4.00959,1275.5,1275.0,4.00959]
[1610319725194,4.00959,1275.5,1275.1,1.20282871]
[1610319725396,4.00959,1275.5,1275.1,3.11512871]
[1610319725794,4.00959,1275.3,1275.1,3.11512871]
[1610319726596,4.00959,1275.3,1275.2,1.20284928]
[1610319726797,17.85495314,1275.9,1275.2,1.20284928]
[1610319727398,17.85955196,1276.0,1275.2,1.20284928]
[1610319727699,4.00959,1275.6,1275.4,4.00959]
[1610319729401,4.00959,1275.6,1275.5,1.20273149]
[1610319732603,17.87244329,1276.1,1275.5,1.20273149]
[1610319733102,17.85677748,1276.2,1275.5,1.20273149]
[1610319733804,4.00959,1275.9,1275.7,4.00959]
[1610319734003,17.85677748,1276.2,1275.7,4.00959]
[1610319734804,1.576,1276.3,1275.7,4.00959]
[1610319735004,21.25174953,1276.4,1275.7,4.00959]
[1610319735206,3.405,1276.4,1275.7,4.00959]
[1610319735410,3.405,1276.4,1275.8,1.20224558]
[1610319735808,3.405,1276.4,1276.3,4.00959]
[1610319736008,4.00959,1276.7,1276.3,4.00959]
[1610319736209,4.00959,1276.7,1276.3,5.59679]
[1610319737208,17.86448615,1277.0,1276.3,5.59679]
[1610319737912,17.86448615,1277.0,1276.9,4.00959]
[1610319738312,21.85551693,1277.1,1276.9,4.00959]
[1610319739310,17.84592693,1277.1,1276.9,4.00959]
[1610319741414,21.1873532,1277.2,1276.9,4.00959]
[1610319742314,21.1873532,1277.2,1276.3,1.5872]
[1610319742515,21.1873532,1277.2,1275.8,2.0858]
[1610319742716,17.75605384,1277.1,1275.5,1.5749]
[1610319742915,17.75605384,1277.1,1275.1,1.9123]
[1610319743118,17.74341208,1277.0,1274.3,5.9547]
[1610319743516,17.74341208,1277.0,1275.6,1.20207879]
[1610319743716,17.72668382,1276.9,1275.6,1.20207879]
[1610319743916,4.00959,1276.8,1276.3,4.00959]
[1610319745916,4.00959,1276.8,1276.5,4.00959]
[1610319749225,21.10784314,1277.2,1276.5,4.00959]
[1610319749929,4.00959,1277.0,1276.5,4.00959]
[1610319752732,4.00959,1277.0,1276.6,1.20163923]
[1610319755936,4.00959,1276.8,1276.6,5.21122923]
[1610319756633,21.05975992,1277.2,1276.6,5.21122923]
[1610319757034,21.05975992,1277.2,1276.7,1.20154119]
[1610319757933,4.00959,1276.9,1276.7,1.20154119]
[1610319758133,21.05975992,1277.2,1276.7,1.20154119]
[1610319758434,3.405,1277.2,1276.7,1.20154119]
[1610319760036,4.00959,1277.1,1276.8,4.00959]
[1610319761338,4.00959,1277.1,1276.9,1.20138905]
[1610319771443,4.00959,1277.1,1276.8,1.20139107]
[1610319772043,4.00959,1277.1,1276.9,4.00959]
[1610319772643,4.00959,1277.1,1277.0,1.20135873]
[1610319774648,3.405,1277.2,1277.0,1.20135873]
[1610319780150,4.00959,1277.1,1277.0,1.20135873]
[1610319781649,34.00959,1277.1,1277.0,1.20135873]
[1610319782052,36.08309,1277.1,1277.0,1.20135873]
[1610319782252,53.80931824,1277.1,1277.0,1.20135873]
[1610319782652,36.08309,1277.1,1276.4,1.20166797]
[1610319782855,17.70955573,1276.8,1276.4,1.20166797]
[1610319783052,30.0,1276.7,1276.4,1.20166797]
[1610319783554,47.69234318,1276.7,1276.4,1.20166797]
[1610319783956,47.68515029,1276.6,1275.8,1.2019549]
[1610319784155,4.00959,1275.9,1275.8,1.2019549]
[1610319785255,34.00959,1275.9,1275.8,1.2019549]
[1610319786659,51.6376246,1275.9,1275.8,1.2019549]
[1610319786855,51.6376246,1275.9,1274.5,4.00959]
[1610319787056,34.00959,1275.9,1274.5,4.00959]
[1610319787457,17.60918651,1275.7,1273.2,1.20274434]
[1610319787656,30.0,1275.6,1273.2,1.20274434]
[1610319788064,17.59504566,1275.5,1274.6,1.20303728]
[1610319788258,4.00959,1274.7,1274.6,1.20303728]
[1610319788459,35.83039,1274.7,1274.6,1.20303728]
[1610319789460,35.83039,1274.7,1273.7,1.2033985]
[1610319789660,5.83039,1274.7,1273.7,1.2033985]
[1610319790261,1.8208,1274.7,1274.1,4.00959]
[1610319790861,30.0,1275.3,1274.1,4.00959]
[1610319791662,30.0,1275.2,1274.1,4.00959]
[1610319791862,32.4833,1275.2,1274.1,4.00959]
[1610319792062,32.4833,1275.2,1274.2,1.20317866]
[1610319792265,4.00959,1274.4,1274.2,1.20317866]
[1610319792963,30.0,1274.3,1274.2,1.20317866]
[1610319793166,4.00959,1274.4,1274.2,1.20317866]
[1610319793363,36.26559,1274.4,1274.2,1.20317866]
[1610319793564,6.26559,1274.4,1273.6,2.0407]
[1610319794166,4.00959,1273.8,1273.7,4.00959]
[1610319794365,2.256,1274.4,1273.7,4.00959]
[1610319795166,2.256,1274.4,1273.8,1.2034434]
[1610319796267,4.00959,1274.0,1273.8,1.2034434]
[1610319796867,4.00959,1274.0,1273.7,4.00959]
[1610319798269,4.00959,1273.8,1273.7,4.00959]
[1610319799269,2.256,1274.4,1273.7,4.00959]
[1610319799468,1.609,1274.7,1273.7,4.00959]
[1610319799669,1.609,1274.7,1273.7,5.21290447]
[1610319799869,5.8366,1275.1,1273.7,5.21290447]
[1610319800871,30.0,1275.0,1273.7,5.21290447]
[1610319801071,30.0,1275.0,1273.8,1.20325097]
[1610319801774,47.48902785,1275.0,1273.8,1.20325097]
[1610319802374,4.00959,1273.9,1273.8,1.20325097]
[1610319802573,4.00959,1273.9,1273.4,1.2035635]
[1610319803274,4.00959,1273.9,1273.3,4.00959]
[1610319803474,4.00959,1273.9,1273.0,2.1754]
[1610319803877,34.00959,1273.9,1273.5,1.20377353]
[1610319804075,4.00959,1273.9,1273.5,1.20377353]
[1610319804277,4.00959,1273.6,1273.5,1.20377353]
[1610319804675,6.35679,1273.6,1273.5,1.20377353]
[1610319804875,36.35679,1273.6,1273.5,1.20377353]
[1610319805075,6.35679,1273.6,1272.7,1.20449824]
[1610319806275,4.00959,1272.8,1272.7,1.20449824]
[1610319806676,4.00959,1272.8,1272.3,4.00959]
[1610319807877,4.00959,1272.8,1272.4,1.20440633]
[1610319808278,4.00959,1272.6,1272.4,1.20440633]
[1610319809478,1.5293,1273.2,1272.4,1.20440633]
[1610319809678,2.3472,1273.6,1272.4,2.82480633]
[1610319809878,2.3336,1274.0,1272.4,2.82480633]
[1610319810078,30.0,1274.3,1272.4,2.82480633]
[1610319810079,5.9138,1273.9,1272.4,2.82480633]
[1610319810283,4.00959,1273.4,1272.9,4.00959]
[1610319811283,2.205,1273.8,1272.9,4.00959]
[1610319811686,2.205,1273.8,1272.8,1.9929]
[1610319812089,2.205,1273.8,1273.0,1.20420905]
[1610319812286,4.00959,1273.2,1273.0,1.20420905]
[1610319813591,4.00959,1273.2,1272.9,1.20421364]
[1610319814291,4.00959,1273.2,1273.0,4.00959]
[1610319815095,4.00959,1273.2,1272.9,1.20421364]
[1610319818298,4.00959,1273.2,1273.1,4.00959]
[1610319818899,4.00959,1273.2,1272.9,1.20421364]
[1610319819099,4.00959,1273.2,1272.7,2.1812]
[1610319820401,4.00959,1273.2,1272.8,4.00959]
[1610319820602,4.00959,1273.2,1272.8,5.21402487]
[1610319821602,4.00959,1273.2,1272.8,1.20443487]
[1610319822003,4.00959,1273.2,1272.9,1.20440816]
[1610319822403,4.00959,1273.0,1272.9,1.20440816]
[1610319823402,4.00959,1273.0,1272.5,1.20459633]
[1610319826505,2.2651,1273.3,1272.5,1.20459633]
[1610319827506,32.2651,1273.3,1272.5,1.20459633]
[1610319827706,2.2651,1273.3,1272.5,1.20459633]
[1610319828107,30.0,1273.5,1272.5,1.20459633]
[1610319828506,4.00959,1272.6,1272.5,1.20459633]
[1610319829107,4.00959,1272.6,1272.2,1.20484655]
[1610319830512,4.00959,1272.3,1272.2,1.20484655]
[1610319831414,1.6202,1273.0,1272.2,1.20484655]
[1610319832415,4.00959,1272.8,1272.4,4.00959]
[1610319833215,4.00959,1272.8,1272.2,1.20484655]
[1610319833616,4.00959,1272.8,1272.5,1.20472574]
[1610319834417,4.00959,1272.6,1272.5,1.20472574]
[1610319834917,4.00959,1272.6,1272.2,1.20491693]
[1610319840524,4.00959,1272.4,1272.2,1.20491693]
[1610319842423,4.00959,1272.4,1272.2,5.21450693]
[1610319843424,4.00959,1272.4,1272.3,1.20494972]
[1610319846326,4.00959,1272.4,1272.2,1.20496846]
[1610319852233,4.00959,1272.4,1270.2,1.20526305]
[1610319852534,4.00959,1272.1,1271.8,4.00959]
[1610319852733,4.00959,1272.1,1270.2,1.20526305]
[1610319853734,4.00959,1272.1,1270.1,1.20536712]
[1610319854534,4.00959,1271.8,1271.4,4.00959]
[1610319856534,49.37908341,1272.7,1271.5,1.20544415]
[1610319857436,46.526,1272.3,1271.5,1.20544415]
[1610319857636,30.0,1272.1,1271.5,1.20544415]
[1610319858340,48.8215,1272.2,1271.5,1.20544415]
[1610319858538,4.00959,1271.6,1271.5,1.20544415]
[1610319859741,48.8215,1272.2,1271.5,1.20544415]
[1610319860543,48.8215,1272.2,1271.5,5.21503415]
[1610319862143,48.8215,1272.2,1271.6,1.20562745]
[1610319862544,4.00959,1271.7,1271.6,1.20562745]
[1610319864247,48.8215,1272.2,1271.6,1.20562745]
[1610319864645,4.00959,1271.9,1271.7,4.00959]
[1610319864848,4.00959,1271.9,1271.6,1.20562745]
[1610319866351,4.00959,1271.9,1271.5,1.20570357]
[1610319866549,4.00959,1271.7,1271.5,5.21529357]
[1610319867650,4.00959,1271.7,1271.6,1.20569162]
[1610319877760,4.00959,1271.7,1271.5,1.20591919]
[1610319879463,34.00959,1271.7,1271.5,1.20591919]
[1610319880464,30.0,1271.6,1271.5,1.20591919]
[1610319881567,4.00959,1271.7,1271.5,1.20591919]
[1610319881967,30.0,1271.6,1271.5,1.20591919]
[1610319885373,30.0,1271.6,1271.0,1.20640957]
[1610319886679,4.00959,1271.1,1270.8,4.00959]
[1610319888082,30.0,1271.1,1270.4,1.20644425]
[1610319888279,30.0,1271.1,1270.9,1.20641707]
[1610319888582,4.00959,1271.0,1270.9,1.20641707]
[1610319888781,34.00959,1271.0,1270.9,1.20641707]
[1610319888981,4.00959,1271.0,1270.9,1.20641707]
[1610319889381,34.00959,1271.0,1270.9,1.20641707]
[1610319890384,4.00959,1271.0,1270.9,1.20641707]
[1610319891287,4.00959,1271.0,1270.5,4.00959]
[1610319891888,1.8447,1271.4,1270.5,4.00959]
[1610319892289,1.8447,1271.4,1270.5,5.98099]
[1610319892688,4.00959,1271.0,1270.6,1.20650319]
[1610319894792,4.00959,1271.0,1270.9,4.00959]
[1610319895495,4.00959,1271.0,1270.9,5.21628967]
[1610319896295,34.00959,1271.0,1270.9,1.20669967]
[1610319896897,34.00959,1271.0,1270.6,1.20688831]
[1610319897498,4.00959,1271.0,1270.6,1.20688831]
[1610319897698,30.0,1270.9,1270.6,1.20688831]
[1610319898298,4.00959,1271.0,1270.5,5.98099]
[1610319898701,4.00959,1270.6,1270.5,5.98099]
[1610319898901,4.00959,1270.6,1270.2,2.4959]
[1610319899301,4.00959,1270.6,1270.0,54.3175]
[1610319900002,4.00959,1270.6,1270.3,1.20725852]
[1610319900404,4.00959,1270.6,1270.3,3.07705852]
[1610319900904,4.00959,1270.4,1270.3,3.07705852]
[1610319901304,4.00959,1270.4,1270.3,1.8698]
[1610319902704,4.00959,1270.4,1270.3,3.07714666]
[1610319904407,92.2632,1271.2,1270.3,3.07714666]
[1610319904808,4.00959,1270.9,1270.7,4.00959]
[1610319905009,30.0,1270.8,1270.7,4.00959]
[1610319905307,34.00959,1270.9,1270.7,4.00959]
[1610319905709,4.00959,1270.9,1270.7,4.00959]
[1610319907412,4.00959,1270.9,1270.3,1.8698]
[1610319907811,4.00959,1270.9,1269.6,48.5183]
[1610319908614,4.00959,1270.9,1269.7,1.20743719]
[1610319908813,4.00959,1270.5,1270.4,4.00959]
[1610319909913,4.00959,1270.5,1270.4,5.21704344]
[1610319911013,4.00959,1270.5,1270.4,1.20745344]
[1610319912617,4.00959,1270.5,1269.8,1.20747092]
[1610319912817,4.00959,1270.5,1270.4,4.00959]
[1610319914121,4.00959,1270.5,1270.4,5.21706665]
[1610319925530,4.00959,1270.5,1270.4,5.19872504]
[1610319926934,4.00959,1270.5,1270.4,1.20747665]
[1610319928136,34.00959,1270.5,1270.4,1.20747665]
[1610319928635,4.00959,1270.5,1270.4,1.20747665]
[1610319931141,34.00959,1270.5,1270.4,1.20747665]
[1610319931342,4.00959,1270.5,1270.4,1.20747665]
[1610319940564,3.99684484,1270.5,1270.4,1.20747665]
[1610319949069,33.99684484,1270.5,1270.4,1.20747665]
[1610319949468,3.99684484,1270.5,1270.4,1.20747665]
[1610319950068,33.99684484,1270.5,1270.4,1.20747665]
[1610319951569,51.44984155,1270.5,1270.4,1.20747665]
[1610319951769,33.99684484,1270.5,1270.4,1.20747665]
[1610319951968,35.59234484,1270.5,1270.4,1.20747665]
[1610319952170,33.99684484,1270.5,1269.8,1.2082334]
[1610319952768,30.0,1269.9,1269.8,1.2082334]
[1610319952968,34.00959,1269.9,1269.8,1.2082334]
[1610319953568,34.00959,1269.9,1269.1,57.0847]
[1610319954068,18.26760153,1269.4,1269.1,57.0847]
[1610319954268,30.0,1269.3,1269.1,57.0847]
[1610319954470,48.26291833,1269.3,1269.1,57.0847]
[1610319955069,4.00959,1269.2,1269.1,57.0847]
[1610319957277,5.60629,1269.2,1269.1,57.0847]
[1610319957477,34.00959,1269.2,1269.1,57.0847]
[1610319958280,95.0587,1269.1,1267.7,65.6429]
[1610319958680,96.9678,1269.1,1267.7,65.6429]
[1610319958882,4.00959,1267.9,1267.7,65.6429]
[1610319959482,15.53334293,1268.7,1267.7,65.6429]
[1610319959883,15.54018564,1268.8,1267.7,67.2567]
[1610319960885,15.54018564,1268.8,1267.7,1.6138]
[1610319961085,4.00959,1268.5,1268.1,4.00959]
[1610319962485,4.00959,1268.5,1267.7,1.6138]
[1610319963086,4.00959,1267.8,1267.7,1.6138]
[1610319964788,4.00959,1267.8,1267.5,51.1232]
[1610319964987,15.50173497,1268.2,1267.7,1.20989358]
[1610319965387,15.49648507,1268.1,1267.7,1.20989358]
[1610319965588,15.48390067,1268.0,1267.7,1.20989358]
[1610319965991,15.47958711,1267.9,1267.7,1.20989358]
[1610319966190,15.47958711,1267.9,1267.5,51.1232]
[1610319966591,15.46909087,1267.7,1267.5,51.1232]
[1610319966991,4.00959,1267.6,1267.5,51.1232]
[1610319968192,19.47226933,1267.6,1267.5,51.1232]
[1610319968392,21.279903,1267.6,1267.5,51.1232]
[1610319968592,23.242903,1267.6,1267.5,51.1232]
[1610319969193,5.97259,1267.6,1267.5,51.1232]
[1610319969392,23.23901003,1267.6,1267.5,51.1232]
[1610319969592,53.23901003,1267.6,1267.5,51.1232]
[1610319969793,5.97259,1267.6,1267.5,51.1232]
[1610319970192,5.97259,1267.6,1266.5,46.139]
[1610319970392,5.97259,1267.6,1265.6,4.00959]
[1610319970792,15.42180481,1266.8,1265.6,4.00959]
[1610319970992,4.00959,1265.8,1265.6,4.00959]
[1610319971993,4.00959,1265.8,1265.7,1.21125318]
[1610319972193,4.00959,1265.8,1265.7,3.45105318]
[1610319972596,15.4239771,1266.8,1265.7,3.45105318]
[1610319972994,15.4239771,1266.8,1266.1,4.00959]
[1610319973195,15.4408599,1267.0,1266.1,5.58279]
[1610319973494,15.43523965,1266.9,1266.1,5.58279]
[1610319973895,15.43644198,1267.0,1266.1,5.58279]
[1610319974397,15.43354096,1266.9,1266.1,5.58279]
[1610319974596,15.43761676,1267.0,1266.1,5.58279]
[1610319974996,15.43761676,1267.0,1266.3,4.00959]
[1610319975198,15.43761676,1267.0,1266.1,1.5732]
[1610319975399,15.43025738,1266.8,1266.1,1.5732]
[1610319976298,15.42367886,1266.7,1266.1,1.5732]
[1610319977101,4.00959,1266.2,1266.1,1.5732]
[1610319978200,4.00959,1266.2,1265.7,2.2398]
[1610319978701,4.00959,1266.2,1265.6,4.00959]
[1610319979102,4.00959,1265.7,1265.6,4.00959]
[1610319979903,4.00959,1265.7,1264.6,59.6967]
[1610319980405,4.00959,1265.7,1265.6,1.21165865]
[1610319982207,4.00959,1265.7,1265.2,1.631]
[1610319982407,15.366386,1265.6,1265.2,1.631]
[1610319982811,15.36397506,1265.5,1265.2,1.631]
[1610319983209,4.00959,1265.7,1264.6,59.6967]
[1610319983210,4.00959,1265.3,1264.6,59.6967]
[1610319983812,21.12732912,1265.3,1264.6,59.6967]
[1610319984010,15.3419681,1265.2,1264.6,59.6967]
[1610319984410,15.33395253,1265.0,1264.6,59.6967]
[1610319984610,15.33395253,1265.0,1264.0,53.17]
[1610319984814,17.28895253,1265.0,1264.0,53.17]
[1610319985010,1.955,1265.0,1264.0,53.17]
[1610319985211,4.00959,1264.6,1264.0,53.17]
[1610319985410,15.33634379,1265.1,1264.0,53.17]
[1610319985612,17.1231426,1265.3,1264.0,53.17]
[1610319985810,15.3541426,1265.3,1264.0,55.667]
[1610319986010,77.94790049,1265.9,1264.0,55.667]
[1610319986011,15.36555588,1265.5,1264.0,55.667]
[1610319986612,15.36128857,1265.2,1264.1,1.21230051]
[1610319986812,15.37772238,1265.4,1264.1,1.21230051]
[1610319987212,4.00959,1264.9,1264.7,4.00959]
[1610319988012,15.39299253,1265.5,1264.7,4.00959]
[1610319988213,15.39299253,1265.5,1264.7,5.74879]
[1610319989014,15.39970718,1265.4,1264.7,5.74879]
[1610319989212,15.39970718,1265.4,1264.9,4.00959]
[1610319989613,15.41464223,1265.5,1264.9,4.00959]
[1610319990013,15.41802407,1265.4,1264.7,1.7392]
[1610319990415,15.42189004,1265.5,1264.7,1.7392]
[1610319991215,4.00959,1265.2,1265.1,4.00959]
[1610319992016,15.43027883,1265.6,1265.1,4.00959]
[1610319993117,15.43027883,1265.6,1265.0,1.6461]
[1610319993320,15.44744932,1265.5,1265.0,1.6461]
[1610319993721,15.44079988,1265.3,1265.0,1.6461]
[1610319994320,15.45163308,1265.4,1265.0,1.6461]
[1610319995121,4.00959,1265.1,1265.0,1.6461]
[1610319995522,4.00959,1265.1,1264.2,4.00959]
[1610319996724,4.00959,1265.1,1264.3,1.2125818]
[1610319997125,4.00959,1265.1,1264.3,2.8701818]
[1610319997328,15.48430595,1265.2,1264.7,4.00959]
[1610319997825,15.50698636,1265.3,1264.7,4.00959]
[1610319998225,15.48909638,1265.2,1264.8,1.21285068]
[1610319998829,15.49045618,1265.3,1264.8,1.21285068]
[1610319999227,15.49045618,1265.3,1265.0,4.00959]
[1610320000227,1.6036,1265.8,1265.0,4.00959]
[1610320000228,15.46019277,1265.4,1265.0,4.00959]
[1610320000830,15.45848478,1265.5,1265.0,4.00959]
[1610320001228,4.00959,1265.1,1265.0,4.00959]
[1610320002228,15.42592049,1265.4,1265.0,4.00959]
[1610320003232,15.42175687,1265.5,1265.0,4.00959]
[1610320004834,19.42862535,1265.6,1265.0,4.00959]
[1610320007342,19.42862535,1265.6,1265.5,4.00959]
[1610320008142,4.00959,1265.6,1265.5,4.00959]
[1610320012847,15.41741041,1266.0,1265.5,4.00959]
[1610320013248,15.41741041,1266.0,1265.9,4.00959]
[1610320013850,15.43169588,1266.1,1265.9,4.00959]
[1610320014148,15.42792082,1266.0,1265.9,4.00959]
[1610320014449,15.43061777,1266.1,1265.9,4.00959]
[1610320015250,4.00959,1266.0,1265.9,4.00959]
[1610320017152,15.45461479,1266.2,1265.9,4.00959]
[1610320017354,15.45461479,1266.2,1265.2,2.3015]
[1610320017355,15.46774302,1266.3,1266.1,4.00959]
[1610320017555,15.48043356,1266.4,1266.1,4.00959]
[1610320017955,15.49142502,1266.5,1266.1,4.00959]
[1610320018355,15.50433322,1266.6,1266.1,4.00959]
[1610320018960,15.5123005,1266.7,1266.1,4.00959]
[1610320019356,15.5123005,1266.7,1266.6,4.00959]
[1610320019557,15.53221752,1266.8,1266.6,4.00959]
[1610320020359,15.54093075,1266.9,1266.6,4.00959]
[1610320020760,15.5512525,1267.0,1266.6,4.00959]
[1610320020960,15.55482036,1267.1,1266.6,6.17639]
[1610320021360,15.55482036,1267.1,1267.0,4.00959]
[1610320021762,15.56926649,1267.2,1267.0,4.00959]
[1610320021960,15.56926649,1267.2,1267.0,6.29239]
[1610320022159,17.40040633,1267.5,1267.0,6.29239]
[1610320022160,15.57239308,1267.3,1267.0,6.29239]
[1610320023262,15.57239308,1267.3,1267.2,4.00959]
[1610320023463,15.58406941,1267.4,1267.2,4.00959]
[1610320024266,15.58984179,1267.5,1267.2,4.00959]
[1610320024866,15.58984179,1267.5,1267.0,2.2828]
[1610320025069,15.59716256,1267.4,1267.0,2.2828]
[1610320025266,15.59716256,1267.4,1267.3,4.00959]
[1610320025866,15.59716256,1267.4,1267.3,5.75849]
[1610320026468,15.59716256,1267.4,1267.3,1.7489]
[1610320027271,15.60124324,1267.5,1267.3,5.75849]
[1610320027672,15.59868133,1267.4,1267.3,5.75849]
[1610320028272,15.59868133,1267.4,1267.3,1.7489]
[1610320028474,15.59868133,1267.4,1267.0,2.2828]
[1610320028675,17.41698238,1267.6,1266.6,2.1668]
[1610320028875,15.54914201,1267.0,1266.6,2.0407]
[1610320029476,4.00959,1266.7,1266.6,2.0407]
[1610320029675,19.53519601,1266.7,1266.6,2.0407]
[1610320029875,4.00959,1266.7,1263.9,30.0]
[1610320030276,15.49751701,1266.3,1263.9,30.0]
[1610320030477,15.49751701,1266.3,1263.4,0.24260895]
[1610320030675,15.48681321,1266.1,1263.2,0.24264566]
[1610320030876,15.48681321,1266.1,1264.0,1.21213045]
[1610320031076,15.48681321,1266.1,1264.0,2.83543045]
[1610320031475,4.00959,1265.7,1265.1,4.00959]
[1610320031676,4.00959,1265.7,1264.0,2.83543045]
[1610320032078,15.47965644,1266.0,1264.0,2.83543045]
[1610320032277,15.47965644,1266.0,1264.0,1.6233]
[1610320033378,15.47965644,1266.0,1265.4,4.00959]
[1610320033379,4.00959,1265.9,1265.4,4.00959]
[1610320035378,4.00959,1265.9,1265.6,4.00959]
[1610320037483,19.45415715,1265.9,1265.6,4.00959]
[1610320037882,4.00959,1265.9,1265.6,4.00959]
[1610320038083,19.44217545,1265.9,1265.6,4.00959]
[1610320038484,4.00959,1265.9,1265.6,4.00959]
[1610320038684,4.00959,1265.9,1265.1,2.4938]
[1610320038884,19.424266,1265.9,1265.1,2.4938]
[1610320039485,4.00959,1265.7,1265.2,4.00959]
[1610320039686,19.40966776,1265.7,1265.2,4.00959]
[1610320039887,4.00959,1265.7,1265.2,4.00959]
[1610320040686,5.60849,1265.7,1265.2,4.00959]
[1610320041087,5.60849,1265.7,1265.1,2.4938]
[1610320041486,4.00959,1265.4,1265.3,4.00959]
[1610320041886,4.00959,1265.4,1265.1,2.4938]
[1610320042086,4.00959,1265.4,1264.9,56.0743]
[1610320042886,5.59429,1265.4,1264.9,56.0743]
[1610320043087,4.00959,1265.4,1264.9,56.0743]
[1610320043491,4.00959,1265.4,1265.2,4.00959]
[1610320044190,5.57049,1265.4,1265.2,4.00959]
[1610320044591,4.00959,1265.4,1265.0,1.6872]
[1610320045396,4.00959,1265.4,1265.3,4.00959]
[1610320045595,5.59639,1265.4,1265.3,4.00959]
[1610320045996,1.5868,1265.4,1265.3,4.00959]
[1610320046600,1.5868,1265.4,1265.0,1.6872]
[1610320047499,1.5868,1265.4,1265.3,4.00959]
[1610320047898,15.39985225,1265.6,1265.3,4.00959]
[1610320048097,19.4147075,1265.7,1265.3,4.00959]
[1610320049299,19.4147075,1265.7,1265.0,1.6872]
[1610320049501,19.4147075,1265.7,1265.2,4.00959]
[1610320050304,15.4011952,1265.6,1265.2,4.00959]
[1610320050501,16.9857952,1265.6,1265.2,4.00959]
[1610320050704,16.9857952,1265.6,1265.1,1.21242461]
[1610320051003,1.5846,1265.6,1265.1,1.21242461]
[1610320051404,19.41145649,1265.7,1265.1,1.21242461]
[1610320051604,19.41145649,1265.7,1265.2,4.00959]
[1610320052405,20.99685649,1265.7,1265.2,4.00959]
[1610320053007,20.99685649,1265.7,1265.3,1.21240547]
[1610320053506,20.99685649,1265.7,1265.6,4.00959]
[1610320053706,5.59499,1265.7,1265.6,4.00959]
[1610320053908,4.00959,1265.7,1265.6,4.00959]
[1610320054107,19.42310246,1265.7,1265.6,4.00959]
[1610320054307,19.42310246,1265.7,1265.6,5.22188421]
[1610320054507,19.42310246,1265.7,1265.6,1.21229421]
[1610320055108,4.00959,1265.7,1265.6,1.21229421]
[1610320056109,4.00959,1265.7,1265.0,5.22205888]
[1610320056410,15.40238521,1265.5,1265.0,5.22205888]
[1610320056610,15.40238521,1265.5,1265.0,1.21246888]
[1610320056811,15.40283055,1265.6,1265.0,1.21246888]
[1610320057512,4.00959,1265.2,1265.1,4.00959]
[1610320057913,15.40085157,1265.5,1265.1,4.00959]
[1610320058715,15.40085157,1265.5,1265.2,1.21244831]
[1610320059015,15.40514181,1265.6,1265.2,1.21244831]
[1610320059619,4.00959,1265.5,1265.2,1.21244831]
[1610320060921,15.41790305,1265.7,1265.2,1.21244831]
[1610320061320,15.41790305,1265.7,1265.2,3.58764831]
[1610320061521,15.41790305,1265.7,1265.6,4.00959]
[1610320061720,15.43185269,1265.9,1265.6,4.00959]
[1610320062122,15.43185269,1265.9,1265.6,5.54419]
[1610320062621,15.4436352,1266.1,1265.6,5.54419]
[1610320062821,15.45337695,1266.3,1265.7,1.21200538]
[1610320063623,15.46124901,1266.5,1266.2,4.00959]
[1610320064222,15.47155202,1266.6,1266.3,51.5379]
[1610320064422,15.48233464,1266.8,1266.3,51.5379]
[1610320064621,15.48233464,1266.8,1266.3,53.5993]
[1610320065023,15.48592549,1266.9,1266.3,53.5993]
[1610320065623,15.48592549,1266.9,1266.8,4.00959]
[1610320065826,15.4921177,1267.0,1266.8,4.00959]
[1610320066026,15.4921177,1267.0,1266.8,5.55229]
[1610320067030,17.30945817,1267.2,1266.8,5.55229]
[1610320067428,18.21483904,1267.5,1266.8,5.55229]
[1610320067429,17.30167635,1267.1,1266.8,5.55229]
[1610320067627,17.30167635,1267.1,1266.8,1.5427]
[1610320068225,17.30167635,1267.1,1266.3,53.5993]